fUST/lending_fUST_20251111
["ID","MTS","AMOUNT","RATE_DAILY","PERIOD"]
[393633087,1762868268019,-6616.95099145,0.00043,60]
[393633088,1762868268042,-2011.0,0.00043,120]
[393633089,1762868268065,-169.0,0.00043,120]
[393633090,1762868268088,-491.25,0.00043013,32]
[393633091,1762868268116,-4501.89,0.00043049,30]
[393633092,1762868268144,-864.0,0.00043197,90]
[393633093,1762868268169,-208143.88827133,0.0004322,30]
[393633094,1762868271810,-793433.05082867,0.0004322,30]
[393633095,1762868271836,-528.0,0.00043256,120]
[393633096,1762868271861,-153.0,0.000434,120]
[393633097,1762868271886,-19601.67838945,0.000435,120]
[393633098,1762868271913,-491.25,0.00043561,33]
[393633099,1762868271939,-414.74259601,0.00043758,60]
[393633100,1762868271964,-209.526,0.00043791,120]
[393633101,1762868271989,-876.41309657,0.000438,120]
[393633102,1762868272013,-1000.0,0.000438,90]
[393633103,1762868272039,-999.0,0.00043835,120]
[393633104,1762868272065,-2000.0,0.000439,120]
[393633105,1762868272090,-200.0,0.0004396,120]
[393633106,1762868272115,-200.0,0.0004396,120]
[393633107,1762868272141,-200.0,0.0004396,120]
[393633108,1762868272166,-1946.0,0.00044,120]
[393633109,1762868272190,-30000.0,0.00044,120]
[393633110,1762868272215,-210.08653787,0.00044,30]
[393633111,1762868272240,-491.25,0.00044109,34]
[393633112,1762868272265,-1059.72715654,0.00044164,120]
[393633113,1762868272290,-200.0,0.00044555,120]
[393633114,1762868272316,-200.0,0.00044555,120]
[393633115,1762868272341,-200.0,0.00044555,120]
[393633116,1762868272367,-491.25,0.00044657,35]
[393633117,1762868272392,-181.00395261,0.000447,60]
[393633118,1762868272418,-153.0,0.000448,120]
[393633119,1762868272443,-2000.0,0.000449,120]
[393633120,1762868272468,-1118.76017885,0.000449,120]
[393633121,1762868272495,-242.64307067,0.00044931,120]
[393633122,1762868272523,-169.14170991,0.00044987,90]
[393633123,1762868272549,-1000.0,0.00044999,120]
[393633124,1762868272574,-1000.0,0.00045,120]
[393633125,1762868272601,-39030.47648285,0.00045,120]
[393633126,1762868275830,-778.36539875,0.00045,120]
[393633127,1762868275857,-157.05640517,0.00045,120]
[393633128,1762868275882,-1000.0,0.00045,120]
[393633129,1762868275908,-200.0,0.00045,120]
[393633130,1762868275947,-160.0,0.00045,120]
[393633131,1762868275973,-296.89621132,0.00045,120]
[393633132,1762868275999,-186.90077513,0.00045,120]
[393633133,1762868276025,-446.94339496,0.00045,120]
[393633134,1762868276050,-1435.85913525,0.00045,120]
[393633135,1762868276075,-1480.94265999,0.00045,120]
[393633136,1762868276101,-41381.58587,0.00045,120]
[393633137,1762868276125,-5000.0,0.00045,30]
[393633138,1762868276150,-5000.0,0.00045,30]
[393633139,1762868276176,-100000.0,0.00045,30]
[393633140,1762868276200,-4230.4044976,0.00045,30]
[393633141,1762868276226,-10120.0,0.00045,120]
[393633142,1762868276254,-166.0,0.00045,120]
[393633143,1762868276280,-491.25,0.00045205,36]
[393633144,1762868276307,-555.0,0.00045256,120]
[393633145,1762868276332,-743.58922015,0.000454,120]
[393633146,1762868276362,-5064.63,0.00045441,30]
[393633147,1762868276388,-491.30827361,0.00045753,37]
[393633148,1762868276414,-20087.58407429,0.000458,120]
[393633149,1762868276439,-1500.19476738,0.000459,120]
[393633150,1762868276465,-30000.0,0.00046,120]
[393633151,1762868276492,-1093.64883918,0.00046,30]
[393633152,1762868276524,-3452.0,0.000462,120]
[393633153,1762868276551,-153.0,0.000462,120]
[393633154,1762868276579,-193.79143341,0.00046301,30]
[393633155,1762868276603,-3005.6,0.00046575,120]
[393633156,1762868276627,-250.0,0.00046575,120]
[393633157,1762868290095,-1205.01588649,0.000468,120]
[393633158,1762868290121,-2000.0,0.000469,120]
[393633159,1762868290147,-1000.0,0.00046999,120]
[393633160,1762868290171,-1000.0,0.00047,120]
[393633161,1762868290196,-150.0,0.00047,120]
[393633162,1762868290322,-1000.0,0.00047,120]
[393633163,1762868290350,-1000.0,0.00047,120]
[393633164,1762868290378,-5149.40266181,0.00047,120]
[393633165,1762868290404,-166.0,0.00047,120]
[393633166,1762868290431,-182.0,0.00047,90]
[393633167,1762868290458,-3000.0,0.000472,120]
[393633168,1762868290485,-582.0,0.00047256,120]
[393633169,1762868290517,-1000.0,0.00047517,90]
[393633170,1762868290543,-500.0,0.00047534,120]
[393633171,1762868290570,-153.0,0.000476,120]
[393633172,1762868290601,-5627.35355722,0.00047832,30]
[393633173,1762868290626,-1000.0,0.00048,120]
[393633174,1762868290651,-1000.0,0.00048,120]
[393633175,1762868290679,-200.0,0.00048,120]
[393633176,1762868290704,-501.0,0.00048,120]
[393633177,1762868290729,-3000.0,0.00048,120]
[393633178,1762868290760,-30000.0,0.00048,120]
[393633179,1762868290784,-223.0376168,0.00048,120]
[393633180,1762868290814,-177.83897099,0.00048,45]
[393633181,1762868290840,-4629.35536,0.00048,120]
[393633182,1762868290865,-89029.76698096,0.00048,120]
[393633183,1762868290889,-500.0,0.00048219,120]
[393633184,1762868290915,-500.0,0.00048219,120]
[393633185,1762868290939,-500.0,0.00048219,120]
[393633186,1762868290963,-500.0,0.00048219,120]
[393633187,1762868290989,-500.0,0.00048219,120]
[393633188,1762868291013,-500.0,0.00048219,120]
[393633189,1762868291037,-500.0,0.00048219,120]
[393633190,1762868291063,-274.23986023,0.00048219,120]
[393633191,1762868291087,-3123.79869382,0.00048398,120]
[393633192,1762868291112,-750.0,0.00048493,120]
[393633193,1762868291138,-2000.0,0.000489,120]
[393633194,1762868291164,-1000.0,0.00049,120]
[393633195,1762868291190,-165.45741328,0.00049,120]
[393633196,1762868291216,-166.0,0.00049,120]
[393633197,1762868291241,-153.0,0.00049,120]
[393633198,1762868291267,-609.0,0.00049256,120]
[393633199,1762868291292,-1000.0,0.00049452,120]
[393633200,1762868291319,-2283.65943544,0.00049913,120]
[393633201,1762868291344,-1000.0,0.00049999,120]
[393633202,1762868291370,-1000.0,0.0005,120]
[393633203,1762868291396,-552.02169192,0.0005,120]
[393633204,1762868291422,-300.0,0.0005,120]
[393633205,1762868291447,-693.0,0.0005,120]
[393633206,1762868291472,-759.5754315,0.0005,120]
[393633207,1762868291498,-39844.32889057,0.0005,120]
[393633208,1762868291527,-1498.98327822,0.0005,120]
[393633209,1762868291553,-5786.65802768,0.0005,120]
[393633210,1762868291578,-157.98003679,0.0005,90]
[393633211,1762868291605,-5353.49233514,0.0005,120]
[393633212,1762868291629,-151.84275139,0.0005,120]
[393633213,1762868291653,-165.42573719,0.0005,120]
[393633214,1762868291676,-153.0,0.000504,120]
[393633215,1762868291700,-1250.0,0.0005041,120]
[393633216,1762868291724,-285.80141199,0.00050575,90]
[393633217,1762868315854,10000.0,0.0002,30]
[393633218,1762868328034,8071.91,0.0002,30]
[393633219,1762868435261,200.0,0.000282,120]
[393633220,1762868435624,200.0,0.000298,120]
[393633221,1762868435939,200.0,0.000314,120]
[393633223,1762868503076,154.278,0.00015082,2]
[393633224,1762868572213,200.0,0.00032028,120]
[393633225,1762868572527,200.0,0.00030941,120]
[393633226,1762868575231,200.0,0.00032028,120]
[393633227,1762868575635,200.0,0.00030941,120]
[393633228,1762868578034,200.0,0.00032028,120]
[393633229,1762868578218,200.0,0.00030941,120]
[393633230,1762868703128,1035.899999,0.00032877,120]
[393633231,1762868742979,906.4778728,0.00032877,120]
[393633233,1762868751154,707.92356,0.00013699,2]
[393633236,1762868825358,-150.0,0.00015278,2]
[393633237,1762868841282,-1799.32778237,0.0001529,2]
[393633238,1762868858165,-300.0,0.00015387,2]
[393633239,1762868862441,863.0,0.00036666,20]
[393633240,1762868875012,-293.0,0.00015388,2]
[393633241,1762868875042,-1200.0,0.00015388,2]
[393633242,1762868875070,-300.0,0.00015388,2]
[393633243,1762868882904,184.0,0.00015388,2]
[393633244,1762868890445,-592.16876935,0.00015389,2]
[393633245,1762868890476,-500.0,0.00015389,2]
[393633246,1762868890507,-165.07448635,0.00015389,2]
[393633247,1762868890538,-570.26970746,0.00015389,2]
[393633248,1762868890567,-500.0,0.00015389,2]
[393633249,1762868890595,-500.0,0.00015389,2]
[393633250,1762868890622,-424.69577685,0.00015389,2]
[393633251,1762868898775,180.0,0.000314,120]
[393633252,1762868901077,180.0,0.000314,120]
[393633253,1762868903419,180.0,0.000314,120]
[393633254,1762868905647,180.0,0.000314,120]
[393633255,1762868905860,-150.0,0.0001539,2]
[393633256,1762868910051,241.80710028,0.000314,120]
[393633257,1762868912642,213.85508632,0.00015389,2]
[393633258,1762868921478,-8744.23135368,0.0001539,2]
[393633259,1762868921562,-10000.01,0.0001539,2]
[393633260,1762868921734,-10000.01,0.0001539,2]
[393633261,1762868921841,-10000.01,0.0001539,2]
[393633262,1762868921999,-10000.01,0.0001539,2]
[393633263,1762868922223,-10000.01,0.0001539,2]
[393633264,1762868922251,-10000.01,0.0001539,2]
[393633265,1762868922378,-10000.01,0.0001539,2]
[393633266,1762868922529,-10000.01,0.0001539,2]
[393633267,1762868922645,-10000.01,0.0001539,2]
[393633268,1762868927535,-10000.01,0.0001539,2]
[393633269,1762868927674,-10000.01,0.0001539,2]
[393633270,1762868927834,-10000.01,0.0001539,2]
[393633271,1762868927960,-10000.01,0.0001539,2]
[393633272,1762868928094,-10000.01,0.0001539,2]
[393633273,1762868928255,-10000.01,0.0001539,2]
[393633274,1762868928380,-10000.01,0.0001539,2]
[393633275,1762868928526,-10000.01,0.0001539,2]
[393633276,1762868928815,-10000.01,0.0001539,2]
[393633277,1762868930690,-10000.01,0.0001539,2]
[393633278,1762868930814,-10000.01,0.0001539,2]
[393633279,1762868930982,-10000.01,0.0001539,2]
[393633280,1762868931111,-10000.01,0.0001539,2]
[393633281,1762868931241,-10000.01,0.0001539,2]
[393633282,1762868931390,-10000.01,0.0001539,2]
[393633283,1762868931536,-10000.01,0.0001539,2]
[393633284,1762868931662,-10000.01,0.0001539,2]
[393633285,1762868931785,-10000.01,0.0001539,2]
[393633286,1762868931901,-10000.01,0.0001539,2]
[393633287,1762868940686,-505.55098108,0.0001529,2]
[393633288,1762868944645,200.81572132,0.00032794,120]
[393633289,1762868956063,-238.32672671,0.0001529,2]
[393633290,1762868958007,-177.67458026,0.0001529,2]
[393633291,1762868960033,-386.24495282,0.0001529,2]
[393633292,1762868962193,-300.69357695,0.0001529,2]
[393633293,1762868965131,-217.85398738,0.0001529,2]
[393633294,1762868967755,-57.55668966,0.0001529,2]
[393633295,1762868968406,-291.12672364,0.00015389,2]
[393633296,1762868980128,-8.87327636,0.00015389,2]
[393633297,1762868995686,-500.0,0.00015389,2]
[393633298,1762868995716,-500.0,0.00015389,2]
[393633299,1762868995747,-500.0,0.00015389,2]
[393633300,1762868995777,-500.0,0.00015389,2]
[393633301,1762868995807,-500.0,0.00015389,2]
[393633302,1762868995837,-500.0,0.00015389,2]
[393633303,1762868995865,-500.0,0.00015389,2]
[393633304,1762868995896,-261.51901718,0.00015389,2]
[393633305,1762868995924,-225.33964024,0.00015389,2]
[393633306,1762868995953,-500.0,0.00015389,2]
[393633307,1762868995984,-500.0,0.00015389,2]
[393633308,1762868996135,-500.0,0.00015389,2]
[393633309,1762868996168,-500.0,0.00015389,2]
[393633310,1762868996203,-500.0,0.00015389,2]
[393633311,1762868996232,-500.0,0.00015389,2]
[393633312,1762868996262,-500.0,0.00015389,2]
[393633313,1762868996290,-500.0,0.00015389,2]
[393633314,1762868996322,-307.73525765,0.00015389,2]
[393633315,1762868996353,-500.0,0.00015389,2]
[393633316,1762868996383,-500.0,0.00015389,2]
[393633317,1762868996414,-500.0,0.00015389,2]
[393633318,1762868996574,-500.0,0.00015389,2]
[393633319,1762868996606,-500.0,0.00015389,2]
[393633320,1762868996635,-500.0,0.00015389,2]
[393633321,1762868996664,-500.0,0.00015389,2]
[393633322,1762868996693,-500.0,0.00015389,2]
[393633323,1762868996725,-500.0,0.00015389,2]
[393633324,1762868996757,-500.0,0.00015389,2]
[393633325,1762868996786,-500.0,0.00015389,2]
[393633326,1762868996815,-500.0,0.00015389,2]
[393633327,1762868996845,-500.0,0.00015389,2]
[393633328,1762868996912,-500.0,0.00015389,2]
[393633329,1762868996941,-500.0,0.00015389,2]
[393633330,1762868996969,-500.0,0.00015389,2]
[393633331,1762868996998,-500.0,0.00015389,2]
[393633332,1762868997026,-500.0,0.00015389,2]
[393633333,1762868997055,-500.0,0.00015389,2]
[393633334,1762868997084,-198.48534403,0.00015389,2]
[393633335,1762868997114,-500.0,0.00015389,2]
[393633336,1762868997143,-240.0,0.00015389,2]
[393633337,1762868997172,-500.0,0.00015389,2]
[393633338,1762868997205,-500.0,0.00015389,2]
[393633339,1762868997321,-500.0,0.00015389,2]
[393633340,1762868997351,-500.0,0.00015389,2]
[393633341,1762868997381,-500.0,0.00015389,2]
[393633342,1762868998122,-75.30405429,0.0001539,2]
[393633343,1762868998137,-500.0,0.0001539,2]
[393633344,1762868998151,-7000.01,0.0001539,2]
[393633345,1762868998174,-10000.01,0.0001539,2]
[393633346,1762868998188,-10000.01,0.0001539,2]
[393633347,1762868998202,-10000.01,0.0001539,2]
[393633348,1762868998216,-10000.01,0.0001539,2]
[393633349,1762868998230,-10000.01,0.0001539,2]
[393633350,1762868998544,-10000.01,0.0001539,2]
[393633351,1762868998694,-10000.01,0.0001539,2]
[393633352,1762868998850,-10000.01,0.0001539,2]
[393633353,1762868998939,-10000.01,0.0001539,2]
[393633354,1762868999042,-10000.01,0.0001539,2]
[393633355,1762869001846,-10000.01,0.0001539,2]
[393633356,1762869007854,-300.0,0.00015389,2]
[393633357,1762869007883,-300.0,0.00015389,2]
[393633358,1762869007912,-1200.0,0.00015389,2]
[393633359,1762869007977,-6400.01,0.0001539,2]
[393633360,1762869008001,-10000.01,0.0001539,2]
[393633361,1762869008065,-10000.01,0.0001539,2]
[393633362,1762869008189,-10000.01,0.0001539,2]
[393633363,1762869008324,-300.0,0.00015389,2]
[393633364,1762869008361,-9400.01,0.0001539,2]
[393633365,1762869008500,-10000.01,0.0001539,2]
[393633366,1762869008638,-10000.01,0.0001539,2]
[393633367,1762869008796,-10000.01,0.0001539,2]
[393633368,1762869010759,-10000.01,0.0001539,2]
[393633369,1762869010874,-10000.01,0.0001539,2]
[393633370,1762869010981,-10000.01,0.0001539,2]
[393633371,1762869011138,-10000.01,0.0001539,2]
[393633372,1762869011268,-10000.01,0.0001539,2]
[393633373,1762869011402,-10000.01,0.0001539,2]
[393633374,1762869011528,-10000.01,0.0001539,2]
[393633375,1762869011688,-10000.01,0.0001539,2]
[393633376,1762869011810,-10000.01,0.0001539,2]
[393633377,1762869028219,201.68516,0.000282,120]
[393633378,1762869030964,227.29010866,0.00032876,120]
[393633415,1762869031948,-1250.8060961,0.0001539,2]
[393633421,1762869032005,-779.99660122,0.0001539,2]
[393633423,1762869032016,-740.16036068,0.0001539,2]
[393633428,1762869035247,200.0,0.000282,120]
[393633429,1762869035625,200.0,0.000298,120]
[393633430,1762869035948,200.0,0.000314,120]
[393633850,1762869044626,-3e-08,0.0001539,2]
[393633856,1762869046313,486.0,0.00031979,120]
[393633861,1762869133186,453.3852474,0.00014855,2]
[393633862,1762869166367,400.0,0.00032,120]
[393633863,1762869198375,475.31,0.00032,120]
[393633864,1762869213017,590.7,0.0003287,120]
[393633865,1762869333825,292.0,0.00032167,120]
[393633867,1762869365571,500.0,0.00036674,60]
[393633868,1762869365811,500.0,0.00036674,60]
[393633869,1762869366082,500.0,0.00036674,60]
[393633870,1762869366322,500.0,0.00036674,60]
[393633871,1762869366599,500.0,0.00036674,60]
[393633872,1762869366824,500.0,0.00036674,60]
[393633873,1762869367074,500.0,0.00036674,60]
[393633874,1762869367317,500.0,0.00036674,60]
[393633875,1762869367612,500.0,0.00036674,60]
[393633876,1762869367868,500.0,0.00036674,60]
[393633877,1762869368147,500.0,0.00036674,60]
[393633878,1762869368364,500.0,0.00036674,60]
[393633879,1762869368646,500.0,0.00036674,60]
[393633880,1762869368897,500.0,0.00036674,60]
[393633881,1762869369266,500.0,0.00036674,60]
[393633882,1762869369400,500.0,0.00036674,120]
[393633883,1762869369647,500.0,0.00036674,120]
[393633884,1762869370148,500.0,0.00036674,120]
[393633885,1762869370447,500.0,0.00036674,120]
[393633886,1762869370723,511.24172828,0.00036674,120]
[393633887,1762869458539,196.07,0.00032877,120]
[393633889,1762869541237,747.9499992,0.00036674,120]
[393634247,1762869693819,30484.22969609,0.00036674,120]
[393635575,1762869751147,-412.5963803,0.000152,2]
[393635628,1762869754110,-291.58790921,0.000152,2]
[393635685,1762869758793,-320.80377826,0.000152,2]
[393635695,1762869760957,-326.56991812,0.000152,2]
[393635696,1762869763008,-210.3783413,0.000152,2]
[393635723,1762869765678,-343.84485449,0.000152,2]
[393636308,1762869827607,6408.2249306,0.00014521,2]
[393636890,1762869889687,194.89,0.00032877,120]
[393637153,1762869935845,721.85568,0.00032876,120]
[393637222,1762869993751,906.4778728,0.00032877,120]
[393637223,1762870028643,166.180297,0.00014578,2]
[393637224,1762870050598,-239.43943911,0.000152,2]
[393637225,1762870053294,-223.08686175,0.000152,2]
[393637226,1762870054887,-209.14531167,0.000152,2]
[393637227,1762870056351,-181.9297246,0.000152,2]
[393637228,1762870059248,-158.86447604,0.000152,2]
[393637229,1762870062409,-289.17869704,0.000152,2]
[393637230,1762870063943,-174.5403129,0.000152,2]
[393637231,1762870065374,-169.01444412,0.000152,2]
[393637235,1762870111219,-186.68139984,0.00015114,2]
[393637236,1762870112807,-266.72851045,0.00015114,2]
[393637237,1762870115542,-300.0,0.00015114,2]
[393637238,1762870117154,-352.30095932,0.00015114,2]
[393637239,1762870119458,-376.5703439,0.00015114,2]
[393637240,1762870121828,-197.99063882,0.00015114,2]
[393637241,1762870125177,-182.1084991,0.00015114,2]
[393637242,1762870185621,-385.98161064,0.00015114,2]
[393637243,1762870185643,-13.72919403,0.00015157,2]
[393637244,1762870202889,151.54767171,0.00036674,60]
[393637245,1762870203288,157.04015861,0.00036674,20]
[393637246,1762870207410,250.0,0.00036674,90]
[393637247,1762870207484,151.0,0.00036674,90]
[393637248,1762870207549,220.06700398,0.00036674,90]
[393637249,1762870208058,250.0,0.00036674,120]
[393637250,1762870208109,151.0,0.00036674,120]
[393637251,1762870208461,159.98135224,0.00036674,120]
[393637252,1762870208697,250.0,0.00036674,45]
[393637253,1762870208749,151.0,0.00036674,45]
[393637254,1762870209365,250.0,0.00036674,30]
[393637255,1762870209945,151.0,0.00036674,30]
[393637256,1762870210030,250.0,0.00036674,120]
[393637257,1762870210609,151.0,0.00036674,120]
[393637258,1762870210658,250.0,0.00036674,30]
[393637259,1762870211246,151.0,0.00036674,30]
[393637260,1762870211333,250.0,0.00036674,20]
[393637261,1762870211989,250.0,0.00036674,20]
[393637262,1762870212142,151.0,0.00036674,30]
[393637263,1762870212722,250.0,0.00036674,20]
[393637264,1762870213201,250.0,0.00036674,90]
[393637265,1762870213433,250.0,0.00036674,20]
[393637266,1762870213871,250.0,0.00036674,120]
[393637267,1762870214051,250.0,0.00036674,20]
[393637268,1762870214484,250.0,0.00036674,45]
[393637269,1762870214716,250.0,0.00036674,20]
[393637270,1762870215160,250.0,0.00036674,30]
[393637271,1762870215414,250.0,0.00036674,20]
[393637272,1762870215843,250.0,0.00036674,120]
[393637273,1762870216078,250.0,0.00036674,20]
[393637274,1762870216594,250.0,0.00036674,30]
[393637275,1762870216760,250.0,0.00036674,20]
[393637276,1762870217239,250.0,0.00036674,20]
[393637277,1762870217378,250.0,0.00036674,20]
[393637278,1762870217890,250.0,0.00036674,20]
[393637279,1762870217999,250.0,0.00036674,20]
[393637280,1762870218544,250.0,0.00036674,20]
[393637281,1762870218690,250.0,0.00036674,20]
[393637282,1762870219202,250.0,0.00036674,20]
[393637283,1762870219319,250.0,0.00036674,20]
[393637284,1762870219958,250.0,0.00036674,20]
[393637285,1762870220185,250.0,0.00036674,20]
[393637286,1762870220225,1214.92756562,0.00015084,2]
[393637287,1762870220506,250.0,0.00036674,20]
[393637288,1762870221183,250.0,0.00036674,20]
[393637289,1762870223650,351.78843227,0.00036674,20]
[393637290,1762870224733,263.96080068,0.00036674,60]
[393637320,1762870232127,-141.37105719,0.00015157,2]
[393637322,1762870232136,-300.0,0.00015287,2]
[393637324,1762870232146,-300.0,0.00015287,2]
[393637326,1762870232155,-300.0,0.00015287,2]
[393637328,1762870232164,-468.03397423,0.00015287,2]
[393637456,1762870240488,-3e-08,0.00015287,2]
[393637475,1762870243610,-507.34188192,0.00015287,2]
[393637478,1762870245811,217.72251373,0.00036674,60]
[393637520,1762870246389,-224.62414382,0.00015287,2]
[393637521,1762870246399,-233.0,0.00015287,2]
[393637522,1762870246408,-1200.0,0.00015288,2]
[393637523,1762870246417,-464.90162948,0.00015289,2]
[393637528,1762870273735,320.64226777,0.00036674,60]
[393637529,1762870278470,274.10655219,0.00036674,60]
[393637530,1762870281613,200.0,0.00036674,30]
[393637531,1762870285548,412.48381262,0.00036674,60]
[393637532,1762870286466,361.51686372,0.00036674,60]
[393637533,1762870290600,260.39999994,0.00036674,60]
[393637534,1762870291273,247.64572575,0.00036674,60]
[393637535,1762870292935,199.19219862,0.00036674,60]
[393637536,1762870294049,443.38637522,0.00036674,60]
[393637537,1762870299752,234.3686396,0.00036674,60]
[393637538,1762870302207,419.24724136,0.00036674,60]
[393637539,1762870302292,203.05688587,0.00036674,60]
[393637540,1762870302843,203.05347304,0.00036674,60]
[393637541,1762870304851,288.55667509,0.00036674,60]
[393637542,1762870306624,320.4938193,0.00036674,60]
[393637543,1762870307376,297.46,0.0002959,120]
[393637544,1762870308201,643.70831292,0.00036674,60]
[393637545,1762870310157,373.47405112,0.00036674,60]
[393637546,1762870312628,433.14291374,0.00036674,60]
[393637547,1762870313477,507.81096135,0.00036674,60]
[393637548,1762870318500,554.59853471,0.00036674,60]
[393637549,1762870320661,400.20628616,0.00036674,60]
[393637550,1762870324889,263.17377404,0.00036674,60]
[393637551,1762870326194,243.80985196,0.00036674,60]
[393637552,1762870327279,296.6309877,0.00036674,60]
[393637553,1762870329855,397.52400464,0.00036674,21]
[393637554,1762870331587,283.57169962,0.00036674,60]
[393637555,1762870333350,500.0,0.00036674,60]
[393637556,1762870333397,169.11248869,0.00036674,60]
[393637557,1762870333592,197.14364254,0.00036674,60]
[393637558,1762870335464,258.33944996,0.00036674,60]
[393637559,1762870338804,374.43338209,0.00036674,60]
[393637560,1762870340256,500.0,0.00036674,60]
[393637561,1762870340498,285.98664036,0.00036674,60]
[393637562,1762870341495,206.48977823,0.00036674,60]
[393637563,1762870342549,212.99490012,0.00036674,60]
[393637564,1762870345701,613.04745536,0.00036674,60]
[393637565,1762870354636,316.08827313,0.00036674,60]
[393637566,1762870355270,492.51752695,0.00036674,60]
[393637567,1762870356046,362.70260497,0.00036674,60]
[393637568,1762870356977,425.62624367,0.00036674,60]
[393637569,1762870357567,401.44435922,0.00036674,60]
[393637570,1762870360446,494.68148976,0.00036674,60]
[393637571,1762870363172,177.01677277,0.00036674,60]
[393637572,1762870363831,500.0,0.00036674,60]
[393637573,1762870364066,500.0,0.00036674,60]
[393637574,1762870364319,434.34442117,0.00036674,60]
[393637575,1762870367574,477.2834,0.00036674,60]
[393637576,1762870368232,369.32474208,0.00036674,60]
[393637577,1762870369501,593.19462963,0.00036674,60]
[393637578,1762870371073,500.0,0.00036674,60]
[393637579,1762870371316,500.0,0.00036674,60]
[393637580,1762870371559,619.60880411,0.00036674,60]
[393637581,1762870373094,198.46205734,0.00036674,60]
[393637582,1762870373627,473.29978476,0.00036674,60]
[393637583,1762870376442,590.30296967,0.00036674,60]
[393637584,1762870376835,244.1690539,0.00036674,60]
[393637585,1762870376978,276.60100261,0.00036674,60]
[393637586,1762870377608,436.16472141,0.00036674,60]
[393637587,1762870378901,438.10462476,0.00036674,60]
[393637588,1762870381535,375.02886394,0.00036674,60]
[393637589,1762870382425,390.83302589,0.00036674,60]
[393637590,1762870383738,500.0,0.00036674,60]
[393637591,1762870383863,500.0,0.00036674,60]
[393637592,1762870384093,341.39515684,0.00036674,60]
[393637593,1762870384156,245.70795193,0.00036674,60]
[393637594,1762870387834,649.59443255,0.00036674,60]
[393637595,1762870392399,249.21335713,0.00036674,60]
[393637596,1762870394735,427.74037751,0.00036674,60]
[393637597,1762870395932,164.07243848,0.00036674,60]
[393637598,1762870396138,394.59704111,0.00036674,60]
[393637599,1762870396562,195.0,0.00036674,120]
[393637600,1762870399008,165.85610765,0.00036674,60]
[393637601,1762870401311,498.11572815,0.00036674,60]
[393637602,1762870401984,417.94167947,0.00036674,60]
[393637603,1762870405215,500.0,0.00036674,60]
[393637604,1762870405457,500.0,0.00036674,60]
[393637605,1762870405717,160.21269658,0.00036674,60]
[393637606,1762870406597,421.0426645,0.00036674,60]
[393637607,1762870409431,493.23422671,0.00036674,60]
[393637608,1762870412067,500.0,0.00036674,60]
[393637609,1762870412330,466.94054661,0.00036674,60]
[393637610,1762870413009,500.0,0.00036674,60]
[393637611,1762870413249,310.55883612,0.00036674,60]
[393637612,1762870414425,268.18712696,0.00036674,60]
[393637613,1762870415102,255.25128273,0.00036674,60]
[393637614,1762870416211,430.55102002,0.00036674,60]
[393637615,1762870416287,500.0,0.00036674,60]
[393637616,1762870416529,246.74306651,0.00036674,60]